[Event "Early-Titled-Tuesday-Blitz-February-13-2024"]
[Site "Chess.com"]
[Date "2024.02.13"]
[Round "9"]
[White "Polish_fighter3000"]
[Black "PLAYER_2006_M"]
[Result "0-1"]
[WhiteElo "3069"]
[BlackElo "3044"]
[TimeControl "180+1"]
[EndTime "9:49:34 PST"]
[Termination "PLAYER_2006_M won by checkmate"]

1. e4 {[%clk 0:03:00.9]} 1... e5 {[%clk 0:02:53.7]} 2. Nf3 {[%clk 0:03:01.3]}
2... Nf6 {[%clk 0:02:48]} 3. Nxe5 {[%clk 0:03:01.5]} 3... d6 {[%clk 0:02:47.6]}
4. Nf3 {[%clk 0:03:02.2]} 4... Nxe4 {[%clk 0:02:48]} 5. Nc3 {[%clk 0:03:03]}
5... Nxc3 {[%clk 0:02:48.3]} 6. dxc3 {[%clk 0:03:03.9]} 6... Be7 {[%clk
0:02:48.5]} 7. Be3 {[%clk 0:03:04.6]} 7... O-O {[%clk 0:02:48.9]} 8. Qd2 {[%clk
0:03:05.2]} 8... Nd7 {[%clk 0:02:49.5]} 9. O-O-O {[%clk 0:03:05.1]} 9... Nf6
{[%clk 0:02:50.1]} 10. Kb1 {[%clk 0:03:02.1]} 10... Re8 {[%clk 0:02:45.2]} 11.
h4 {[%clk 0:02:50.7]} 11... d5 {[%clk 0:02:38.9]} 12. c4 {[%clk 0:02:34.8]}
12... c6 {[%clk 0:02:28.8]} 13. Ng5 {[%clk 0:01:53.2]} 13... h6 {[%clk
0:02:01.2]} 14. Nf3 {[%clk 0:01:53]} 14... Bf8 {[%clk 0:01:55.1]} 15. cxd5
{[%clk 0:01:36.6]} 15... Nxd5 {[%clk 0:01:53.1]} 16. Bd4 {[%clk 0:01:19.2]}
16... Bf5 {[%clk 0:01:47.2]} 17. Bd3 {[%clk 0:01:13.9]} 17... Bxd3 {[%clk
0:01:47.2]} 18. Qxd3 {[%clk 0:01:14.8]} 18... Nf4 {[%clk 0:01:36.3]} 19. Qf5
{[%clk 0:01:06.4]} 19... Ne6 {[%clk 0:01:05]} 20. Ng5 {[%clk 0:00:44.8]} 20...
Nxg5 {[%clk 0:01:02.1]} 21. Bxg7 {[%clk 0:00:34.7]} 21... Qc8 {[%clk 0:00:50.2]}
22. Qxc8 {[%clk 0:00:34.2]} 22... Raxc8 {[%clk 0:00:49.2]} 23. Bxf8 {[%clk
0:00:34.6]} 23... Kxf8 {[%clk 0:00:40.4]} 24. hxg5 {[%clk 0:00:34.4]} 24... hxg5
{[%clk 0:00:41.3]} 25. Rd7 {[%clk 0:00:24.3]} 25... Re7 {[%clk 0:00:31.6]} 26.
Rh8+ {[%clk 0:00:20.4]} 26... Kg7 {[%clk 0:00:31.9]} 27. Rxe7 {[%clk 0:00:21]}
27... Rxh8 {[%clk 0:00:31.1]} 28. a4 {[%clk 0:00:17]} 28... Rh2 {[%clk
0:00:31.5]} 29. g3 {[%clk 0:00:13.6]} 29... Rxf2 {[%clk 0:00:18.3]} 30. Rxb7
{[%clk 0:00:14]} 30... Rf3 {[%clk 0:00:14.6]} 31. Rxa7 {[%clk 0:00:12.2]} 31...
Rxg3 {[%clk 0:00:15.3]} 32. Ra5 {[%clk 0:00:10.2]} 32... g4 {[%clk 0:00:11.7]}
33. Rg5+ {[%clk 0:00:04.3]} 33... Kh6 {[%clk 0:00:09.9]} 34. Rc5 {[%clk
0:00:04.1]} 34... Re3 {[%clk 0:00:06.6]} 35. Rxc6+ {[%clk 0:00:03.3]} 35... Kg5
{[%clk 0:00:06.8]} 36. Rc8 {[%clk 0:00:02.8]} 36... f5 {[%clk 0:00:06.4]} 37.
Rg8+ {[%clk 0:00:02.3]} 37... Kh4 {[%clk 0:00:05.9]} 38. a5 {[%clk 0:00:03.2]}
38... f4 {[%clk 0:00:04.4]} 39. Rh8+ {[%clk 0:00:02.2]} 39... Kg3 {[%clk
0:00:04.6]} 40. a6 {[%clk 0:00:02.7]} 40... Re7 {[%clk 0:00:04.9]} 41. b4 {[%clk
0:00:02.7]} 41... f3 {[%clk 0:00:04.5]} 42. Rf8 {[%clk 0:00:02.9]} 42... Kf2
{[%clk 0:00:04.4]} 43. b5 {[%clk 0:00:02.6]} 43... g3 {[%clk 0:00:05]} 44. b6
{[%clk 0:00:03.1]} 44... g2 {[%clk 0:00:05.4]} 45. Rg8 {[%clk 0:00:03.7]} 45...
g1=Q+ {[%clk 0:00:05]} 46. Rxg1 {[%clk 0:00:04.3]} 46... Kxg1 {[%clk 0:00:05.9]}
47. a7 {[%clk 0:00:03]} 47... f2 {[%clk 0:00:05]} 48. a8=Q {[%clk 0:00:03.2]}
48... f1=Q+ {[%clk 0:00:05.6]} 49. Kb2 {[%clk 0:00:03.2]} 49... Qf6+ {[%clk
0:00:05.7]} 50. Ka2 {[%clk 0:00:02]} 50... Qe6+ {[%clk 0:00:06]} 51. Ka1 {[%clk
0:00:01.8]} 51... Qe5+ {[%clk 0:00:04.1]} 52. Ka2 {[%clk 0:00:02]} 52... Qe6+
{[%clk 0:00:04.5]} 53. Ka1 {[%clk 0:00:02.5]} 53... Qd7 {[%clk 0:00:03.5]} 54.
Qg8+ {[%clk 0:00:01.9]} 54... Kf2 {[%clk 0:00:04.1]} 55. Qc4 {[%clk 0:00:01.6]}
55... Qd6 {[%clk 0:00:03]} 56. Qb5 {[%clk 0:00:01.3]} 56... Qa3+ {[%clk
0:00:02.9]} 57. Kb1 {[%clk 0:00:01.8]} 57... Re1# {[%clk 0:00:03.5]} 0-1

[Event "Early-Titled-Tuesday-Blitz-February-13-2024"]
[Site "Chess.com"]
[Date "2024.02.13"]
[Round "9"]
[White "AlexPapasimakopoulos"]
[Black "mbojan"]
[Result "1/2-1/2"]
[WhiteElo "2731"]
[BlackElo "2868"]
[TimeControl "180+1"]
[EndTime "9:49:35 PST"]
[Termination "Game drawn by repetition"]

1. d4 {[%clk 0:03:00.9]} 1... Nf6 {[%clk 0:02:59]} 2. c4 {[%clk 0:03:01.1]} 2...
g6 {[%clk 0:02:59.1]} 3. Nc3 {[%clk 0:03:01.2]} 3... Bg7 {[%clk 0:02:58.7]} 4.
Bg5 {[%clk 0:02:51.1]} 4... h6 {[%clk 0:02:56.9]} 5. Bh4 {[%clk 0:02:46.1]} 5...
d6 {[%clk 0:02:37.8]} 6. e3 {[%clk 0:02:43.4]} 6... Nbd7 {[%clk 0:02:28.1]} 7.
Be2 {[%clk 0:02:42.7]} 7... O-O {[%clk 0:02:27.3]} 8. Nf3 {[%clk 0:02:42.7]}
8... b6 {[%clk 0:02:26.3]} 9. Nd2 {[%clk 0:02:36.9]} 9... Bb7 {[%clk 0:02:23.9]}
10. O-O {[%clk 0:02:37.5]} 10... e6 {[%clk 0:02:20.2]} 11. b4 {[%clk 0:02:36.2]}
11... a5 {[%clk 0:02:14.8]} 12. b5 {[%clk 0:02:29.9]} 12... Qb8 {[%clk
0:02:08.9]} 13. Bf3 {[%clk 0:02:29.9]} 13... Qa7 {[%clk 0:02:03.3]} 14. Bc6
{[%clk 0:02:00]} 14... g5 {[%clk 0:00:57.9]} 15. Bg3 {[%clk 0:01:56.7]} 15...
Rac8 {[%clk 0:00:56]} 16. Rc1 {[%clk 0:01:46.3]} 16... Nb8 {[%clk 0:00:52]} 17.
Bf3 {[%clk 0:01:41]} 17... Bxf3 {[%clk 0:00:51.2]} 18. Qxf3 {[%clk 0:01:40.7]}
18... Nbd7 {[%clk 0:00:51.2]} 19. a4 {[%clk 0:01:33.6]} 19... Qa8 {[%clk
0:00:51.6]} 20. Qc6 {[%clk 0:01:29.3]} 20... Qxc6 {[%clk 0:00:45.9]} 21. bxc6
{[%clk 0:01:29.4]} 21... Nb8 {[%clk 0:00:46.6]} 22. d5 {[%clk 0:01:25]} 22...
Na6 {[%clk 0:00:41.5]} 23. Nb3 {[%clk 0:01:04.5]} 23... Nh5 {[%clk 0:00:37.9]}
24. Nd4 {[%clk 0:01:04.3]} 24... Rfe8 {[%clk 0:00:13]} 25. Rfd1 {[%clk
0:01:01.6]} 25... Nxg3 {[%clk 0:00:12.5]} 26. hxg3 {[%clk 0:01:01.3]} 26... Bxd4
{[%clk 0:00:11.8]} 27. Rxd4 {[%clk 0:00:55.5]} 27... e5 {[%clk 0:00:09.4]} 28.
Rdd1 {[%clk 0:00:54.7]} 28... f5 {[%clk 0:00:10.1]} 29. e4 {[%clk 0:00:44.9]}
29... f4 {[%clk 0:00:10.2]} 30. g4 {[%clk 0:00:44.7]} 30... Kg7 {[%clk
0:00:10.6]} 31. f3 {[%clk 0:00:44.7]} 31... Rh8 {[%clk 0:00:09.9]} 32. Kf2
{[%clk 0:00:40.9]} 32... h5 {[%clk 0:00:10.6]} 33. gxh5 {[%clk 0:00:40.8]} 33...
Rxh5 {[%clk 0:00:11.5]} 34. Rh1 {[%clk 0:00:40.7]} 34... Rch8 {[%clk 0:00:11]}
35. Rxh5 {[%clk 0:00:40.6]} 35... Rxh5 {[%clk 0:00:11.9]} 36. Nb5 {[%clk
0:00:39.2]} 36... Kf6 {[%clk 0:00:11.5]} 37. Kg1 {[%clk 0:00:37.7]} 37... Ke7
{[%clk 0:00:11.6]} 38. Ra1 {[%clk 0:00:33.6]} 38... Kd8 {[%clk 0:00:11.9]} 39.
Nc3 {[%clk 0:00:25.3]} 39... Nc5 {[%clk 0:00:12]} 40. Rd1 {[%clk 0:00:24.8]}
40... Rh4 {[%clk 0:00:12.4]} 41. Kf2 {[%clk 0:00:24.3]} 41... Ke7 {[%clk
0:00:12.2]} 42. Kg1 {[%clk 0:00:23]} 42... Ke8 {[%clk 0:00:12.3]} 43. Kf2 {[%clk
0:00:22.9]} 43... Kd8 {[%clk 0:00:13]} 44. Kg1 {[%clk 0:00:18.9]} 44... g4
{[%clk 0:00:13.2]} 45. fxg4 {[%clk 0:00:19]} 45... Rxg4 {[%clk 0:00:14.1]} 46.
Kf2 {[%clk 0:00:19.5]} 46... Rh4 {[%clk 0:00:14.5]} 47. Rg1 {[%clk 0:00:15.5]}
47... Rh2 {[%clk 0:00:07.2]} 48. Kf3 {[%clk 0:00:15.1]} 48... Rh7 {[%clk
0:00:07.9]} 49. g3 {[%clk 0:00:14.7]} 49... Rh3 {[%clk 0:00:05.5]} 50. Kg4
{[%clk 0:00:13.9]} 50... Rxg3+ {[%clk 0:00:05.9]} 51. Rxg3 {[%clk 0:00:14.4]}
51... fxg3 {[%clk 0:00:06.8]} 52. Kxg3 {[%clk 0:00:15]} 52... Nd3 {[%clk
0:00:06.1]} 53. Nd1 {[%clk 0:00:12]} 53... Nc5 {[%clk 0:00:07]} 54. Nc3 {[%clk
0:00:12.2]} 54... Nd3 {[%clk 0:00:07.5]} 55. Nd1 {[%clk 0:00:12.4]} 55... Ke7
{[%clk 0:00:06.4]} 56. Kf3 {[%clk 0:00:12.4]} 56... Nc5 {[%clk 0:00:06]} 57. Nc3
{[%clk 0:00:12.2]} 57... Kd8 {[%clk 0:00:05.2]} 58. Ke3 {[%clk 0:00:11.3]} 58...
Nb3 {[%clk 0:00:04.7]} 59. Kd3 {[%clk 0:00:11.4]} 59... Nc5+ {[%clk 0:00:05.4]}
60. Ke3 {[%clk 0:00:11.9]} 60... Ke7 {[%clk 0:00:05.9]} 61. Kf3 {[%clk
0:00:12.2]} 61... Ke8 {[%clk 0:00:06.3]} 62. Ke3 {[%clk 0:00:12.7]} 62... Kd8
{[%clk 0:00:07]} 63. Kf3 {[%clk 0:00:13.2]} 63... Nd3 {[%clk 0:00:06]} 64. Ke3
{[%clk 0:00:13.5]} 64... Nc5 {[%clk 0:00:05.9]} 65. Ke2 {[%clk 0:00:13.9]} 65...
Nb3 {[%clk 0:00:05.6]} 66. Kd3 {[%clk 0:00:14.1]} 66... Nc5+ {[%clk 0:00:05.6]}
67. Kd2 {[%clk 0:00:14.7]} 67... Nb3+ {[%clk 0:00:05.7]} 68. Kc2 {[%clk
0:00:15.1]} 68... Nc5 {[%clk 0:00:06.6]} 69. Kc1 {[%clk 0:00:15.3]} 69... Nd3+
{[%clk 0:00:06.6]} 70. Kc2 {[%clk 0:00:15.6]} 70... Nc5 {[%clk 0:00:07.5]} 71.
Kd2 {[%clk 0:00:15.8]} 71... Nb3+ {[%clk 0:00:07.9]} 72. Ke3 {[%clk 0:00:16.2]}
72... Nc5 {[%clk 0:00:08.8]} 1/2-1/2

[Event "Early-Titled-Tuesday-Blitz-February-13-2024"]
[Site "Chess.com"]
[Date "2024.02.13"]
[Round "9"]
[White "ploxoi"]
[Black "Lion-Al-Messi"]
[Result "1-0"]
[WhiteElo "2456"]
[BlackElo "2553"]
[TimeControl "180+1"]
[EndTime "9:49:41 PST"]
[Termination "ploxoi won by resignation"]

1. d4 {[%clk 0:03:00.9]} 1... Nf6 {[%clk 0:02:59.5]} 2. c4 {[%clk 0:03:01]} 2...
b6 {[%clk 0:02:59.5]} 3. Nc3 {[%clk 0:02:57.3]} 3... Bb7 {[%clk 0:02:59.1]} 4.
f3 {[%clk 0:02:57.8]} 4... d5 {[%clk 0:02:59.1]} 5. cxd5 {[%clk 0:02:58.7]} 5...
Nxd5 {[%clk 0:02:59.9]} 6. e4 {[%clk 0:02:59.6]} 6... Nxc3 {[%clk 0:02:59.9]} 7.
bxc3 {[%clk 0:03:00.5]} 7... e6 {[%clk 0:02:59.4]} 8. Be3 {[%clk 0:03:00.7]}
8... Be7 {[%clk 0:02:59.5]} 9. Bb5+ {[%clk 0:02:58.5]} 9... c6 {[%clk
0:02:59.2]} 10. Bd3 {[%clk 0:02:58.7]} 10... c5 {[%clk 0:02:59.9]} 11. Ne2
{[%clk 0:02:58.9]} 11... O-O {[%clk 0:02:58.7]} 12. O-O {[%clk 0:02:59.1]} 12...
Nd7 {[%clk 0:02:58.3]} 13. Qd2 {[%clk 0:02:59.3]} 13... Qc7 {[%clk 0:02:56.5]}
14. Rac1 {[%clk 0:02:56.9]} 14... Rac8 {[%clk 0:02:56.5]} 15. h4 {[%clk
0:02:56.5]} 15... Bxh4 {[%clk 0:02:55.4]} 16. Bf4 {[%clk 0:02:55.9]} 16... Qc6
{[%clk 0:02:50.4]} 17. Rfd1 {[%clk 0:02:47.2]} 17... Be7 {[%clk 0:02:47]} 18. d5
{[%clk 0:02:45.6]} 18... exd5 {[%clk 0:02:38.9]} 19. exd5 {[%clk 0:02:46.5]}
19... Qxd5 {[%clk 0:02:34.2]} 20. Qe3 {[%clk 0:02:46.8]} 20... Qe6 {[%clk
0:02:29.4]} 21. Qxe6 {[%clk 0:02:46.6]} 21... fxe6 {[%clk 0:02:30.3]} 22. Bxh7+
{[%clk 0:02:47.4]} 22... Kxh7 {[%clk 0:02:28.3]} 23. Rxd7 {[%clk 0:02:48.3]}
23... Ba6 {[%clk 0:02:25.6]} 24. Rxe7 {[%clk 0:02:42.9]} 24... Bxe2 {[%clk
0:02:25.4]} 25. Be5 {[%clk 0:02:43.6]} 25... Rg8 {[%clk 0:02:23.8]} 26. Kf2
{[%clk 0:02:41.4]} 26... Bc4 {[%clk 0:02:22.4]} 27. a3 {[%clk 0:02:27.2]} 27...
Rcd8 {[%clk 0:02:20.7]} 28. g4 {[%clk 0:01:59.6]} 28... Rd2+ {[%clk 0:02:17.8]}
29. Kg3 {[%clk 0:02:00.1]} 29... Rd3 {[%clk 0:02:14.8]} 30. Rxa7 {[%clk
0:01:55.3]} 30... Bd5 {[%clk 0:02:14.6]} 31. Rf1 {[%clk 0:01:51]} 31... Re3
{[%clk 0:02:08.2]} 32. Bf4 {[%clk 0:01:45.5]} 32... Rxc3 {[%clk 0:02:06.3]} 33.
a4 {[%clk 0:01:39]} 33... Rf8 {[%clk 0:02:00.9]} 34. Rxg7+ {[%clk 0:01:38.7]}
34... Kxg7 {[%clk 0:02:01]} 35. Be5+ {[%clk 0:01:39.4]} 35... Kg6 {[%clk
0:02:01]} 36. Bxc3 {[%clk 0:01:40.3]} 36... Ra8 {[%clk 0:02:01.1]} 37. Rb1
{[%clk 0:01:40.2]} 37... Ra6 {[%clk 0:01:59.7]} 38. Be5 {[%clk 0:01:27.8]} 38...
Rxa4 {[%clk 0:01:59.6]} 39. Rxb6 {[%clk 0:01:27]} 39... Ra3 {[%clk 0:01:59.9]}
40. Rb8 {[%clk 0:01:23.3]} 40... Rxf3+ {[%clk 0:01:59.3]} 41. Kh4 {[%clk
0:01:23.8]} 41... c4 {[%clk 0:01:40.4]} 42. Rg8+ {[%clk 0:01:23.8]} 42... Kf7
{[%clk 0:01:40.5]} 43. Rg7+ {[%clk 0:01:24.4]} 43... Kf8 {[%clk 0:01:40.4]} 44.
Kg5 {[%clk 0:01:20.7]} 44... Re3 {[%clk 0:01:33.7]} 45. Bf6 {[%clk 0:01:20.3]}
45... Rf3 {[%clk 0:01:07.4]} 46. Rc7 {[%clk 0:01:14.6]} 46... Ke8 {[%clk
0:00:56.4]} 47. Re7+ {[%clk 0:01:13.8]} 47... Kf8 {[%clk 0:00:56.4]} 48. Rd7
{[%clk 0:01:10.8]} 48... Bc6 {[%clk 0:00:51.3]} 49. Rc7 {[%clk 0:00:55.8]} 49...
Bb5 {[%clk 0:00:45.4]} 50. Kg6 {[%clk 0:00:54.2]} 50... Be8+ {[%clk 0:00:39.3]}
51. Kg5 {[%clk 0:00:53.9]} 51... Bb5 {[%clk 0:00:29.6]} 52. Rc5 {[%clk
0:00:53.8]} 52... Bd7 {[%clk 0:00:15.7]} 53. Rxc4 {[%clk 0:00:53.4]} 53... Ke8
{[%clk 0:00:13.4]} 54. Rb4 {[%clk 0:00:52]} 54... Bc6 {[%clk 0:00:13.3]} 55.
Rb8+ {[%clk 0:00:47.9]} 55... Kd7 {[%clk 0:00:13.5]} 56. Be5 {[%clk 0:00:42.8]}
56... Re3 {[%clk 0:00:12.5]} 57. Bf4 {[%clk 0:00:42.7]} 57... Re2 {[%clk
0:00:12]} 58. Kf6 {[%clk 0:00:26.9]} 58... Rf2 {[%clk 0:00:10.5]} 59. Kg5 {[%clk
0:00:27.1]} 59... Re2 {[%clk 0:00:10.5]} 60. Rg8 {[%clk 0:00:19]} 60... e5
{[%clk 0:00:09.5]} 61. Bg3 {[%clk 0:00:19.7]} 61... e4 {[%clk 0:00:09.5]} 62.
Bf4 {[%clk 0:00:17.3]} 62... Rg2 {[%clk 0:00:08.3]} 63. Rg6 {[%clk 0:00:15.8]}
63... Bb7 {[%clk 0:00:07.2]} 64. Rd6+ {[%clk 0:00:15.8]} 64... Kc8 {[%clk
0:00:07.5]} 65. Re6 {[%clk 0:00:14.3]} 65... Kd7 {[%clk 0:00:07.1]} 66. Re5
{[%clk 0:00:14]} 66... Bc6 {[%clk 0:00:06]} 67. Kf5 {[%clk 0:00:14]} 67... Rd2
{[%clk 0:00:03.3]} 68. Bxd2 {[%clk 0:00:13.6]} 1-0

[Event "Early-Titled-Tuesday-Blitz-February-13-2024"]
[Site "Chess.com"]
[Date "2024.02.13"]
[Round "9"]
[White "Bugcrusher"]
[Black "WilsonPalencia21"]
[Result "1-0"]
[WhiteElo "2467"]
[BlackElo "2577"]
[TimeControl "180+1"]
[EndTime "9:49:44 PST"]
[Termination "Bugcrusher won by resignation"]

1. d4 {[%clk 0:02:58.3]} 1... Nf6 {[%clk 0:02:31.7]} 2. c4 {[%clk 0:02:57.2]}
2... c5 {[%clk 0:02:29.5]} 3. d5 {[%clk 0:02:55.9]} 3... e6 {[%clk 0:02:29.7]}
4. Nf3 {[%clk 0:02:54.9]} 4... exd5 {[%clk 0:02:30.6]} 5. cxd5 {[%clk
0:02:55.1]} 5... g6 {[%clk 0:02:15.9]} 6. Nc3 {[%clk 0:02:54.2]} 6... d6 {[%clk
0:02:16.3]} 7. e4 {[%clk 0:02:50.8]} 7... a6 {[%clk 0:02:15.2]} 8. h3 {[%clk
0:02:44.2]} 8... Bg7 {[%clk 0:02:15.3]} 9. Bd3 {[%clk 0:02:44.1]} 9... b5 {[%clk
0:02:15.3]} 10. O-O {[%clk 0:02:41.2]} 10... O-O {[%clk 0:02:15.1]} 11. Re1
{[%clk 0:02:36.4]} 11... Ra7 {[%clk 0:02:13.6]} 12. Bf4 {[%clk 0:02:31.1]} 12...
Re7 {[%clk 0:02:11.3]} 13. a4 {[%clk 0:02:24]} 13... b4 {[%clk 0:02:07.7]} 14.
Nb1 {[%clk 0:02:19.6]} 14... Nh5 {[%clk 0:01:59.7]} 15. Bg5 {[%clk 0:02:15.4]}
15... Bf6 {[%clk 0:01:59.3]} 16. Bxf6 {[%clk 0:02:13.3]} 16... Nxf6 {[%clk
0:01:58.8]} 17. Nbd2 {[%clk 0:02:13.2]} 17... Nbd7 {[%clk 0:01:56.6]} 18. a5
{[%clk 0:02:10.6]} 18... Ne8 {[%clk 0:01:46.9]} 19. Nc4 {[%clk 0:02:09.3]} 19...
f6 {[%clk 0:01:47.3]} 20. Qd2 {[%clk 0:02:06.2]} 20... Ne5 {[%clk 0:01:47.1]}
21. Nfxe5 {[%clk 0:02:03.1]} 21... fxe5 {[%clk 0:01:45.6]} 22. Rf1 {[%clk
0:01:56]} 22... Ref7 {[%clk 0:01:45]} 23. Nb6 {[%clk 0:01:45.3]} 23... Bb7
{[%clk 0:01:41.9]} 24. Qe2 {[%clk 0:01:42]} 24... Nc7 {[%clk 0:01:41.7]} 25. g3
{[%clk 0:01:38.1]} 25... Qf6 {[%clk 0:01:36.6]} 26. Kg2 {[%clk 0:01:27.9]} 26...
Qf3+ {[%clk 0:01:30.4]} 27. Qxf3 {[%clk 0:01:27.6]} 27... Rxf3 {[%clk
0:01:31.3]} 28. Be2 {[%clk 0:01:27.2]} 28... R3f7 {[%clk 0:01:23.3]} 29. Bg4
{[%clk 0:01:23.4]} 29... Kg7 {[%clk 0:01:20.7]} 30. Rad1 {[%clk 0:01:14.2]}
30... h5 {[%clk 0:01:17.3]} 31. Bd7 {[%clk 0:01:13.5]} 31... Nb5 {[%clk
0:01:06.6]} 32. Be6 {[%clk 0:01:09.6]} 32... Re7 {[%clk 0:01:03.2]} 33. f4
{[%clk 0:01:03.2]} 33... Nd4 {[%clk 0:00:57.8]} 34. fxe5 {[%clk 0:00:59.4]}
34... dxe5 {[%clk 0:00:48.3]} 35. Rxf8 {[%clk 0:00:58.4]} 35... Kxf8 {[%clk
0:00:47.8]} 36. Nd7+ {[%clk 0:00:52.9]} 36... Kg7 {[%clk 0:00:47.3]} 37. Nxc5
{[%clk 0:00:53.2]} 37... Ba8 {[%clk 0:00:41]} 38. Bd7 {[%clk 0:00:33.4]} 38...
b3 {[%clk 0:00:20.5]} 39. Rf1 {[%clk 0:00:24.6]} 39... Nc2 {[%clk 0:00:20.1]}
40. d6 {[%clk 0:00:21.9]} 40... Rxd7 {[%clk 0:00:14.5]} 41. Nxd7 {[%clk
0:00:20.4]} 41... Ne3+ {[%clk 0:00:14.4]} 42. Kg1 {[%clk 0:00:19.6]} 42... Nxf1
{[%clk 0:00:14.4]} 43. Kxf1 {[%clk 0:00:20.1]} 43... Bxe4 {[%clk 0:00:12.3]} 44.
Nxe5 {[%clk 0:00:19.3]} 44... Kf6 {[%clk 0:00:10.6]} 45. d7 {[%clk 0:00:18.2]}
45... Ke7 {[%clk 0:00:11.1]} 46. Kf2 {[%clk 0:00:17.8]} 46... Bf5 {[%clk
0:00:11.4]} 47. h4 {[%clk 0:00:17.6]} 47... Bxd7 {[%clk 0:00:10.6]} 48. Nxg6+
{[%clk 0:00:17.9]} 48... Kf6 {[%clk 0:00:09.7]} 49. Nf4 {[%clk 0:00:18]} 49...
Be8 {[%clk 0:00:10.3]} 50. Ke3 {[%clk 0:00:17.6]} 50... Kf5 {[%clk 0:00:11]} 51.
Kf3 {[%clk 0:00:17.9]} 51... Bc6+ {[%clk 0:00:10.6]} 52. Ke3 {[%clk 0:00:18.3]}
52... Be8 {[%clk 0:00:11.1]} 53. Nd5 {[%clk 0:00:18.3]} 53... Bf7 {[%clk
0:00:10.4]} 54. Nc7 {[%clk 0:00:18.3]} 54... Bc4 {[%clk 0:00:10.5]} 55. Kd4
{[%clk 0:00:18.5]} 55... Bf1 {[%clk 0:00:10.7]} 56. Nd5 {[%clk 0:00:18.6]} 56...
Kg4 {[%clk 0:00:11.1]} 57. Nf6+ {[%clk 0:00:19]} 57... Kxg3 {[%clk 0:00:11.3]}
58. Nxh5+ {[%clk 0:00:19.3]} 58... Kxh4 {[%clk 0:00:11.8]} 59. Nf6 {[%clk
0:00:19.3]} 59... Kg5 {[%clk 0:00:11.8]} 60. Ne4+ {[%clk 0:00:18.8]} 60... Kf4
{[%clk 0:00:11.8]} 61. Nd2 {[%clk 0:00:19.1]} 61... Bb5 {[%clk 0:00:10.9]} 62.
Nxb3 {[%clk 0:00:19.1]} 62... Kf5 {[%clk 0:00:11.8]} 63. Kc5 {[%clk 0:00:18.7]}
63... Ke5 {[%clk 0:00:11.7]} 64. Kb6 {[%clk 0:00:19.2]} 64... Kd5 {[%clk
0:00:11.7]} 65. Nc5 {[%clk 0:00:19.5]} 65... Kc4 {[%clk 0:00:12]} 66. Nxa6
{[%clk 0:00:19.6]} 66... Be8 {[%clk 0:00:09]} 67. Nc7 {[%clk 0:00:18.1]} 67...
Bh5 {[%clk 0:00:08.6]} 68. a6 {[%clk 0:00:18.3]} 68... Bf3 {[%clk 0:00:08.7]}
69. Nb5 {[%clk 0:00:17.2]} 69... Kb4 {[%clk 0:00:08.4]} 70. Nd6 {[%clk 0:00:17]}
70... Kb3 {[%clk 0:00:07]} 71. Nb7 {[%clk 0:00:17]} 71... Kxb2 {[%clk
0:00:06.9]} 72. a7 {[%clk 0:00:17.3]} 72... Kb3 {[%clk 0:00:06.1]} 73. a8=Q
{[%clk 0:00:17.1]} 1-0